[Event "Titled Tuesday Blitz November 08 Early 2022"]
[White "Hart, Braeden"]
[Black "Boyer, Mahel"]
[WhiteFideId "30962587"]
[BlackFideId "45102422"]
[WhiteElo "2424"]
[BlackElo "2454"]
[Result "0-1"]
[Round "06"]
[TimeControl "180+1"]
[Date "2022.11.09"]
[WhiteClock "0:01:50"]
[BlackClock "0:01:14"]

1. e4 {[%clk 0:03:00]}  Nc6 {[%clk 0:02:29]} 2. Nf3 {[%clk 0:02:59]}  d5 {[%clk 0:02:30]} 3. exd5 {[%clk 0:02:59]}  Qxd5 {[%clk 0:02:30]} 4. Nc3 {[%clk 0:02:59]}  Qh5 {[%clk 0:02:31]} 5. Bb5 {[%clk 0:02:55]}  Bg4 {[%clk 0:02:29]} 6. d3 {[%clk 0:02:42]}  O-O-O {[%clk 0:02:13]} 7. Bxc6 {[%clk 0:02:41]}  bxc6 {[%clk 0:02:14]} 8. Be3 {[%clk 0:02:40]}  e6 {[%clk 0:02:12]} 9. Ne4 {[%clk 0:02:33]}  Nf6 {[%clk 0:01:48]} 10. Ng3 {[%clk 0:02:27]}  Qd5 {[%clk 0:01:44]} 11. h3 {[%clk 0:02:24]}  Bxf3 {[%clk 0:01:39]} 12. Qxf3 {[%clk 0:02:25]}  Qxf3 {[%clk 0:01:39]} 13. gxf3 {[%clk 0:02:26]}  Nd5 {[%clk 0:01:39]} 14. Ke2 {[%clk 0:02:24]}  f5 {[%clk 0:01:29]} 15. Bxa7 {[%clk 0:02:23]}  c5 {[%clk 0:01:26]} 16. d4 {[%clk 0:02:12]}  cxd4 {[%clk 0:01:27]} 17. Bxd4 {[%clk 0:02:11]}  Nf4+ {[%clk 0:01:26]} 18. Ke3 {[%clk 0:02:10]}  Ng2+ {[%clk 0:01:26]} 19. Kd3 {[%clk 0:02:08]}  e5 {[%clk 0:01:16]} 20. Nxf5 {[%clk 0:02:07]}  exd4 {[%clk 0:01:16]} 21. a4 {[%clk 0:02:00]}  g6 {[%clk 0:01:15]} 22. Ng3 {[%clk 0:01:55]}  Nf4+ {[%clk 0:01:14]} 23. Ke4 {[%clk 0:01:50]}  Bh6 {[%clk 0:01:14]} 0-1


[Site "https://www.chess.com"]

[Event "Titled Tuesday Blitz November 08 Early 2022"]
[White "Hernandez Jimenez, Alexander Andres"]
[Black "Ovchinnikov, Vsevolod"]
[WhiteFideId "3900452"]
[BlackFideId "24176842"]
[WhiteElo "2098"]
[BlackElo "2376"]
[Result "0-1"]
[Round "06"]
[TimeControl "180+1"]
[Date "2022.11.09"]
[WhiteClock "0:00:01"]
[BlackClock "0:00:08"]

1. e4 {[%clk 0:03:00]}  g6 {[%clk 0:02:56]} 2. d4 {[%clk 0:03:00]}  Bg7 {[%clk 0:02:56]} 3. c4 {[%clk 0:02:58]}  c5 {[%clk 0:02:56]} 4. Nf3 {[%clk 0:02:56]}  cxd4 {[%clk 0:02:56]} 5. Nxd4 {[%clk 0:02:56]}  Nf6 {[%clk 0:02:54]} 6. Nc3 {[%clk 0:02:56]}  d6 {[%clk 0:02:54]} 7. Be2 {[%clk 0:02:55]}  O-O {[%clk 0:02:55]} 8. O-O {[%clk 0:02:54]}  Nc6 {[%clk 0:02:55]} 9. Be3 {[%clk 0:02:52]}  Bd7 {[%clk 0:02:54]} 10. f3 {[%clk 0:02:51]}  Re8 {[%clk 0:02:50]} 11. Qd2 {[%clk 0:02:48]}  Qa5 {[%clk 0:02:49]} 12. Rfd1 {[%clk 0:02:39]}  Rac8 {[%clk 0:02:48]} 13. Rac1 {[%clk 0:02:36]}  Nxd4 {[%clk 0:02:39]} 14. Bxd4 {[%clk 0:02:34]}  Nh5 {[%clk 0:02:23]} 15. Bxg7 {[%clk 0:02:27]}  Nxg7 {[%clk 0:02:24]} 16. b3 {[%clk 0:02:25]}  Ne6 {[%clk 0:02:23]} 17. Nd5 {[%clk 0:02:24]}  Qxd2 {[%clk 0:02:22]} 18. Rxd2 {[%clk 0:02:24]}  f6 {[%clk 0:02:16]} 19. Kf2 {[%clk 0:02:10]}  Kf7 {[%clk 0:02:17]} 20. Ke3 {[%clk 0:02:10]}  Nc5 {[%clk 0:02:06]} 21. Rdc2 {[%clk 0:02:07]}  Be6 {[%clk 0:02:04]} 22. Rc3 {[%clk 0:01:56]}  Na6 {[%clk 0:01:55]} 23. a3 {[%clk 0:01:53]}  Bd7 {[%clk 0:01:42]} 24. b4 {[%clk 0:01:49]}  Nc7 {[%clk 0:01:42]} 25. c5 {[%clk 0:01:45]}  Nxd5+ {[%clk 0:01:41]} 26. exd5 {[%clk 0:01:45]}  dxc5 {[%clk 0:01:41]} 27. bxc5 {[%clk 0:01:30]}  Rc7 {[%clk 0:01:38]} 28. c6 {[%clk 0:01:27]}  bxc6 {[%clk 0:01:38]} 29. dxc6 {[%clk 0:01:27]}  Be6 {[%clk 0:01:35]} 30. Ba6 {[%clk 0:01:20]}  Bd5 {[%clk 0:01:21]} 31. Bb7 {[%clk 0:01:19]}  e6 {[%clk 0:00:45]} 32. Kd4 {[%clk 0:01:17]}  Rb8 {[%clk 0:00:36]} 33. a4 {[%clk 0:01:11]}  Ke7 {[%clk 0:00:35]} 34. a5 {[%clk 0:01:10]}  Kd6 {[%clk 0:00:32]} 35. a6 {[%clk 0:01:10]}  g5 {[%clk 0:00:26]} 36. Ke3 {[%clk 0:01:06]}  h5 {[%clk 0:00:26]} 37. g3 {[%clk 0:01:03]}  Rg8 {[%clk 0:00:25]} 38. Rf1 {[%clk 0:00:52]}  f5 {[%clk 0:00:20]} 39. f4 {[%clk 0:00:51]}  g4 {[%clk 0:00:20]} 40. Rfc1 {[%clk 0:00:48]}  Rh8 {[%clk 0:00:19]} 41. Kd4 {[%clk 0:00:42]}  h4 {[%clk 0:00:20]} 42. R3c2 {[%clk 0:00:28]}  hxg3 {[%clk 0:00:19]} 43. hxg3 {[%clk 0:00:28]}  Rh3 {[%clk 0:00:17]} 44. Rc3 {[%clk 0:00:26]}  Rh2 {[%clk 0:00:17]} 45. R1c2 {[%clk 0:00:25]}  Rh1 {[%clk 0:00:16]} 46. Rc1 {[%clk 0:00:25]}  Rh3 {[%clk 0:00:17]} 47. R1c2 {[%clk 0:00:24]}  Be4 {[%clk 0:00:15]} 48. Rc1 {[%clk 0:00:24]}  Rh2 {[%clk 0:00:14]} 49. Ke3 {[%clk 0:00:20]}  Rg2 {[%clk 0:00:13]} 50. Rd1+ {[%clk 0:00:18]}  Bd5 {[%clk 0:00:13]} 51. Kd4 {[%clk 0:00:17]}  Rh2 {[%clk 0:00:06]} 52. Ke3 {[%clk 0:00:12]}  Rg2 {[%clk 0:00:06]} 53. Kd4 {[%clk 0:00:12]}  Ra2 {[%clk 0:00:06]} 54. Ke3 {[%clk 0:00:08]}  Ra4 {[%clk 0:00:06]} 55. Rdc1 {[%clk 0:00:06]}  Re4+ {[%clk 0:00:06]} 56. Kf2 {[%clk 0:00:06]}  Rd4 {[%clk 0:00:06]} 57. R1c2 {[%clk 0:00:06]}  Rb4 {[%clk 0:00:07]} 58. Kg1 {[%clk 0:00:04]}  Rb3 {[%clk 0:00:06]} 59. Kf2 {[%clk 0:00:03]}  Rxc3 {[%clk 0:00:07]} 60. Rxc3 {[%clk 0:00:04]}  Bxc6 {[%clk 0:00:07]} 61. Bxc6 {[%clk 0:00:01]}  Rxc6 {[%clk 0:00:08]} 0-1


[Site "https://www.chess.com"]

[Event "Titled Tuesday Blitz November 08 Early 2022"]
[White "Horobetz, Graham"]
[Black "Moaataz, Ayah"]
[WhiteFideId "2047322"]
[BlackFideId "10615873"]
[WhiteElo "2592"]
[BlackElo "1993"]
[Result "1-0"]
[Round "06"]
[TimeControl "180+1"]
[Date "2022.11.09"]
[WhiteClock "0:00:17"]
[BlackClock "0:01:36"]

1. e4 {[%clk 0:03:00]}  c6 {[%clk 0:02:59]} 2. d4 {[%clk 0:02:59]}  d5 {[%clk 0:03:00]} 3. Nc3 {[%clk 0:02:58]}  dxe4 {[%clk 0:03:00]} 4. Nxe4 {[%clk 0:02:59]}  Nf6 {[%clk 0:03:00]} 5. Nxf6+ {[%clk 0:02:57]}  exf6 {[%clk 0:03:01]} 6. c3 {[%clk 0:02:57]}  Bd6 {[%clk 0:03:02]} 7. Bd3 {[%clk 0:02:58]}  Qc7 {[%clk 0:03:01]} 8. Qc2 {[%clk 0:02:56]}  h5 {[%clk 0:02:56]} 9. Ne2 {[%clk 0:02:52]}  Bg4 {[%clk 0:02:56]} 10. h3 {[%clk 0:02:49]}  Be6 {[%clk 0:02:55]} 11. Be3 {[%clk 0:02:46]}  Nd7 {[%clk 0:02:52]} 12. c4 {[%clk 0:02:37]}  Bb4+ {[%clk 0:02:44]} 13. Nc3 {[%clk 0:02:35]}  Nb6 {[%clk 0:02:38]} 14. a3 {[%clk 0:02:29]}  Bxc3+ {[%clk 0:02:35]} 15. Qxc3 {[%clk 0:02:30]}  O-O-O {[%clk 0:02:33]} 16. a4 {[%clk 0:02:22]}  Kb8 {[%clk 0:02:19]} 17. a5 {[%clk 0:02:14]}  Nc8 {[%clk 0:02:18]} 18. b4 {[%clk 0:01:54]}  Ka8 {[%clk 0:02:17]} 19. O-O {[%clk 0:01:29]}  Qd7 {[%clk 0:02:13]} 20. Rfd1 {[%clk 0:01:06]}  g5 {[%clk 0:02:11]} 21. a6 {[%clk 0:01:01]}  b6 {[%clk 0:02:10]} 22. d5 {[%clk 0:01:02]}  cxd5 {[%clk 0:01:51]} 23. cxd5 {[%clk 0:01:02]}  Bxd5 {[%clk 0:01:48]} 24. Qxf6 {[%clk 0:00:32]}  Qe6 {[%clk 0:01:44]} 25. Bxg5 {[%clk 0:00:21]}  Rdg8 {[%clk 0:01:42]} 26. Qxe6 {[%clk 0:00:17]}  fxe6 {[%clk 0:01:40]} 27. h4 {[%clk 0:00:17]}  Nd6 {[%clk 0:01:40]} 28. f3 {[%clk 0:00:17]}  Nf5 {[%clk 0:01:40]} 29. Bxf5 {[%clk 0:00:17]}  Bb3 {[%clk 0:01:38]} 30. Be4+ {[%clk 0:00:16]}  Kb8 {[%clk 0:01:36]} 31. Bf4+ {[%clk 0:00:17]}  Kc8 {[%clk 0:01:36]} 32. Rac1+ {[%clk 0:00:17]} 1-0


[Site "https://www.chess.com"]

[Event "Titled Tuesday Blitz November 08 Early 2022"]
[White "Ibarra Jerez, Jose Carlos"]
[Black "Faizrakhmanov, Ramil"]
[WhiteFideId "2226332"]
[BlackFideId "24103209"]
[WhiteElo "2638"]
[BlackElo "2437"]
[Result "1/2-1/2"]
[Round "06"]
[TimeControl "180+1"]
[Date "2022.11.08"]
[WhiteClock "0:00:04"]
[BlackClock "0:00:03"]

1. e4 {[%clk 0:03:00]}  c6 {[%clk 0:03:00]} 2. Nf3 {[%clk 0:03:01]}  d5 {[%clk 0:03:00]} 3. d3 {[%clk 0:03:01]}  Qc7 {[%clk 0:03:00]} 4. exd5 {[%clk 0:03:01]}  cxd5 {[%clk 0:02:59]} 5. c4 {[%clk 0:03:02]}  Nf6 {[%clk 0:02:59]} 6. Nc3 {[%clk 0:03:02]}  e6 {[%clk 0:02:47]} 7. g3 {[%clk 0:03:02]}  dxc4 {[%clk 0:02:41]} 8. dxc4 {[%clk 0:03:01]}  a6 {[%clk 0:02:36]} 9. Qe2 {[%clk 0:02:59]}  Bd6 {[%clk 0:02:31]} 10. Bg2 {[%clk 0:02:57]}  O-O {[%clk 0:02:30]} 11. O-O {[%clk 0:02:58]}  b6 {[%clk 0:02:29]} 12. Nd4 {[%clk 0:02:45]}  Ra7 {[%clk 0:02:08]} 13. Ndb5 {[%clk 0:02:30]}  axb5 {[%clk 0:02:07]} 14. Nxb5 {[%clk 0:02:30]}  Qe7 {[%clk 0:02:04]} 15. Nxd6 {[%clk 0:02:31]}  Qxd6 {[%clk 0:02:02]} 16. Bf4 {[%clk 0:02:30]}  e5 {[%clk 0:02:03]} 17. Bxe5 {[%clk 0:02:27]}  Qe7 {[%clk 0:02:03]} 18. Rfe1 {[%clk 0:01:45]}  Nbd7 {[%clk 0:01:59]} 19. Bd4 {[%clk 0:01:46]}  Qxe2 {[%clk 0:01:59]} 20. Rxe2 {[%clk 0:01:46]}  Bb7 {[%clk 0:01:59]} 21. Bxb7 {[%clk 0:01:36]}  Rxb7 {[%clk 0:02:00]} 22. Re7 {[%clk 0:01:36]}  Rfb8 {[%clk 0:01:49]} 23. Rd1 {[%clk 0:01:31]}  h6 {[%clk 0:01:42]} 24. a4 {[%clk 0:01:25]}  Kf8 {[%clk 0:01:34]} 25. Re3 {[%clk 0:01:16]}  Rc8 {[%clk 0:01:33]} 26. b3 {[%clk 0:01:15]}  Nc5 {[%clk 0:01:30]} 27. Bxf6 {[%clk 0:00:58]}  gxf6 {[%clk 0:01:31]} 28. Rd6 {[%clk 0:00:58]}  Re8 {[%clk 0:01:28]} 29. Rf3 {[%clk 0:00:48]}  Ne4 {[%clk 0:01:27]} 30. Rd5 {[%clk 0:00:44]}  Re6 {[%clk 0:01:22]} 31. Kg2 {[%clk 0:00:39]}  Rc7 {[%clk 0:01:18]} 32. Rf4 {[%clk 0:00:33]}  Nc5 {[%clk 0:01:15]} 33. Rf3 {[%clk 0:00:33]}  Rcc6 {[%clk 0:01:06]} 34. Rd8+ {[%clk 0:00:31]}  Kg7 {[%clk 0:01:05]} 35. Rf4 {[%clk 0:00:31]}  h5 {[%clk 0:01:00]} 36. Rf5 {[%clk 0:00:28]}  Re5 {[%clk 0:00:59]} 37. Rf3 {[%clk 0:00:26]}  Re2 {[%clk 0:00:56]} 38. b4 {[%clk 0:00:20]}  Nxa4 {[%clk 0:00:54]} 39. Ra8 {[%clk 0:00:06]}  Nb2 {[%clk 0:00:45]} 40. c5 {[%clk 0:00:06]}  bxc5 {[%clk 0:00:43]} 41. bxc5 {[%clk 0:00:06]}  Rxc5 {[%clk 0:00:43]} 42. Ra7 {[%clk 0:00:06]}  Rcc2 {[%clk 0:00:39]} 43. Ra6 {[%clk 0:00:05]}  Nc4 {[%clk 0:00:29]} 44. Raxf6 {[%clk 0:00:05]}  Ne5 {[%clk 0:00:16]} 45. R3f5 {[%clk 0:00:04]}  Kg8 {[%clk 0:00:13]} 46. h3 {[%clk 0:00:03]}  h4 {[%clk 0:00:09]} 47. g4 {[%clk 0:00:02]}  Kg7 {[%clk 0:00:05]} 48. Rf4 {[%clk 0:00:03]}  Kg8 {[%clk 0:00:05]} 49. R6f5 {[%clk 0:00:03]}  Rcd2 {[%clk 0:00:03]} 50. Rf6 {[%clk 0:00:04]}  Nd3 {[%clk 0:00:03]} 51. R4f5 {[%clk 0:00:03]}  Ne5 {[%clk 0:00:02]} 52. Rf4 {[%clk 0:00:04]}  Kg7 {[%clk 0:00:03]} 53. R6f5 {[%clk 0:00:04]}  Kg8 {[%clk 0:00:03]} 54. Rf6 {[%clk 0:00:04]} 1/2-1/2


[Site "https://www.chess.com"]

[Event "Titled Tuesday Blitz November 08 Early 2022"]
[White "Izuzquiza Gonzalez, Javier"]
[Black "Bibilashvili, Lali"]
[WhiteFideId "3101029"]
[BlackFideId "13604236"]
[WhiteElo "2034"]
[BlackElo "1819"]
[Result "0-1"]
[Round "06"]
[TimeControl "180+1"]
[Date "2022.11.09"]
[WhiteClock "0:00:09"]
[BlackClock "0:00:35"]

1. d4 {[%clk 0:02:55]}  Nf6 {[%clk 0:02:58]} 2. c4 {[%clk 0:02:55]}  g6 {[%clk 0:02:58]} 3. Nf3 {[%clk 0:02:56]}  Bg7 {[%clk 0:02:58]} 4. g3 {[%clk 0:02:56]}  d6 {[%clk 0:02:58]} 5. Bg2 {[%clk 0:02:57]}  O-O {[%clk 0:02:58]} 6. O-O {[%clk 0:02:58]}  Nbd7 {[%clk 0:02:59]} 7. Nc3 {[%clk 0:02:58]}  e5 {[%clk 0:02:56]} 8. e4 {[%clk 0:02:58]}  Re8 {[%clk 0:02:56]} 9. Qc2 {[%clk 0:02:57]}  exd4 {[%clk 0:02:55]} 10. Nxd4 {[%clk 0:02:58]}  Nc5 {[%clk 0:02:56]} 11. Re1 {[%clk 0:02:55]}  c6 {[%clk 0:02:55]} 12. h3 {[%clk 0:02:55]}  a5 {[%clk 0:02:47]} 13. Be3 {[%clk 0:02:51]}  a4 {[%clk 0:02:45]} 14. Rad1 {[%clk 0:02:49]}  Qc7 {[%clk 0:02:43]} 15. Ndb5 {[%clk 0:02:33]}  cxb5 {[%clk 0:02:37]} 16. Nxb5 {[%clk 0:02:34]}  Qe7 {[%clk 0:02:32]} 17. Nxd6 {[%clk 0:02:32]}  Ne6 {[%clk 0:02:26]} 18. Nxe8 {[%clk 0:02:26]}  Nxe8 {[%clk 0:02:26]} 19. f4 {[%clk 0:02:20]}  Bd7 {[%clk 0:02:25]} 20. e5 {[%clk 0:02:12]}  Nc5 {[%clk 0:02:21]} 21. Kh2 {[%clk 0:02:06]}  Bc6 {[%clk 0:02:20]} 22. Bd5 {[%clk 0:02:03]}  Nc7 {[%clk 0:02:16]} 23. Bxc6 {[%clk 0:01:49]}  bxc6 {[%clk 0:02:16]} 24. Rd6 {[%clk 0:01:49]}  Ra6 {[%clk 0:01:57]} 25. Bxc5 {[%clk 0:01:47]}  Qe8 {[%clk 0:01:48]} 26. Red1 {[%clk 0:01:45]}  Ne6 {[%clk 0:01:48]} 27. Qf2 {[%clk 0:01:38]}  h5 {[%clk 0:01:44]} 28. Bb6 {[%clk 0:01:31]}  Kh7 {[%clk 0:01:42]} 29. Be3 {[%clk 0:01:23]}  Qb8 {[%clk 0:01:31]} 30. Rd7 {[%clk 0:01:16]}  Kg8 {[%clk 0:01:24]} 31. R1d6 {[%clk 0:00:47]}  Qb4 {[%clk 0:01:22]} 32. Qe2 {[%clk 0:00:41]}  Ra8 {[%clk 0:01:13]} 33. g4 {[%clk 0:00:40]}  h4 {[%clk 0:01:08]} 34. Rxc6 {[%clk 0:00:32]}  g5 {[%clk 0:00:59]} 35. Bd4 {[%clk 0:00:14]}  Nxf4 {[%clk 0:00:57]} 36. Qc2 {[%clk 0:00:10]}  Qe1 {[%clk 0:00:56]} 37. Rcc7 {[%clk 0:00:08]}  Qg3+ {[%clk 0:00:50]} 38. Kh1 {[%clk 0:00:09]}  Qxh3+ {[%clk 0:00:47]} 39. Qh2 {[%clk 0:00:10]}  Qf3+ {[%clk 0:00:46]} 40. Kg1 {[%clk 0:00:09]}  Ne2+ {[%clk 0:00:45]} 41. Qxe2 {[%clk 0:00:09]}  Qxe2 {[%clk 0:00:44]} 42. Rxf7 {[%clk 0:00:10]}  Qxg4+ {[%clk 0:00:43]} 43. Kf1 {[%clk 0:00:10]}  Rf8 {[%clk 0:00:38]} 44. e6 {[%clk 0:00:09]}  Bxd4 {[%clk 0:00:35]} 0-1


[Site "https://www.chess.com"]

[Event "Titled Tuesday Blitz November 08 Early 2022"]
[White "Jaskolka, Tomasz"]
[Black "Shapiro, Daniel"]
[WhiteFideId "1170791"]
[BlackFideId "2001780"]
[WhiteElo "2126"]
[BlackElo "2314"]
[Result "1-0"]
[Round "06"]
[TimeControl "180+1"]
[Date "2022.11.09"]
[WhiteClock "0:00:06"]
[BlackClock "0:00:01"]

1. d4 {[%clk 0:02:50]}  Nf6 {[%clk 0:02:59]} 2. c4 {[%clk 0:02:49]}  e6 {[%clk 0:02:58]} 3. g3 {[%clk 0:02:49]}  d5 {[%clk 0:02:54]} 4. Bg2 {[%clk 0:02:48]}  Bb4+ {[%clk 0:02:54]} 5. Bd2 {[%clk 0:02:45]}  Be7 {[%clk 0:02:53]} 6. cxd5 {[%clk 0:02:43]}  exd5 {[%clk 0:02:52]} 7. Nc3 {[%clk 0:02:43]}  c6 {[%clk 0:02:50]} 8. Nf3 {[%clk 0:02:41]}  h6 {[%clk 0:02:49]} 9. O-O {[%clk 0:02:41]}  Bf5 {[%clk 0:02:49]} 10. Qb3 {[%clk 0:02:36]}  Qb6 {[%clk 0:02:47]} 11. Qxb6 {[%clk 0:02:36]}  axb6 {[%clk 0:02:47]} 12. a3 {[%clk 0:02:34]}  Nbd7 {[%clk 0:02:41]} 13. Bf4 {[%clk 0:02:31]}  O-O {[%clk 0:02:39]} 14. Ne5 {[%clk 0:02:22]}  b5 {[%clk 0:02:34]} 15. Nxd7 {[%clk 0:02:21]}  Nxd7 {[%clk 0:02:27]} 16. e4 {[%clk 0:02:17]}  dxe4 {[%clk 0:02:26]} 17. Nxe4 {[%clk 0:02:18]}  Nb6 {[%clk 0:02:01]} 18. Nd6 {[%clk 0:02:09]}  Bxd6 {[%clk 0:01:47]} 19. Bxd6 {[%clk 0:02:10]}  Rfd8 {[%clk 0:01:47]} 20. Bc7 {[%clk 0:02:10]}  Nc4 {[%clk 0:01:42]} 21. Bxd8 {[%clk 0:02:10]}  Rxd8 {[%clk 0:01:42]} 22. a4 {[%clk 0:01:49]}  b4 {[%clk 0:01:42]} 23. a5 {[%clk 0:01:33]}  Nxb2 {[%clk 0:01:37]} 24. a6 {[%clk 0:01:32]}  bxa6 {[%clk 0:01:35]} 25. Rxa6 {[%clk 0:01:33]}  Rxd4 {[%clk 0:01:24]} 26. Rxc6 {[%clk 0:01:33]}  Nc4 {[%clk 0:01:10]} 27. Bd5 {[%clk 0:01:19]}  Nd2 {[%clk 0:01:01]} 28. Rc5 {[%clk 0:00:24]}  Nxf1 {[%clk 0:00:53]} 29. Kxf1 {[%clk 0:00:25]}  Be6 {[%clk 0:00:34]} 30. Bxe6 {[%clk 0:00:23]}  fxe6 {[%clk 0:00:34]} 31. Ke2 {[%clk 0:00:23]}  Rd5 {[%clk 0:00:27]} 32. Rc6 {[%clk 0:00:20]}  Kf7 {[%clk 0:00:24]} 33. Rb6 {[%clk 0:00:19]}  Rd4 {[%clk 0:00:24]} 34. Ke3 {[%clk 0:00:20]}  e5 {[%clk 0:00:24]} 35. f4 {[%clk 0:00:18]}  Rc4 {[%clk 0:00:22]} 36. fxe5 {[%clk 0:00:18]}  Rc2 {[%clk 0:00:19]} 37. h4 {[%clk 0:00:15]}  h5 {[%clk 0:00:18]} 38. Rxb4 {[%clk 0:00:13]}  Ke6 {[%clk 0:00:17]} 39. Kf4 {[%clk 0:00:10]}  Rf2+ {[%clk 0:00:14]} 40. Kg5 {[%clk 0:00:09]}  Rf5+ {[%clk 0:00:14]} 41. Kg6 {[%clk 0:00:10]}  Rxe5 {[%clk 0:00:12]} 42. Rb6+ {[%clk 0:00:10]}  Ke7 {[%clk 0:00:10]} 43. Rb7+ {[%clk 0:00:10]}  Kf8 {[%clk 0:00:10]} 44. Rf7+ {[%clk 0:00:11]}  Ke8 {[%clk 0:00:09]} 45. Rxg7 {[%clk 0:00:11]}  Kf8 {[%clk 0:00:08]} 46. Rf7+ {[%clk 0:00:10]}  Kg8 {[%clk 0:00:07]} 47. Rg7+ {[%clk 0:00:11]}  Kf8 {[%clk 0:00:07]} 48. Kh6 {[%clk 0:00:07]}  Ke8 {[%clk 0:00:05]} 49. Rg5 {[%clk 0:00:06]}  Re6+ {[%clk 0:00:04]} 50. Kxh5 {[%clk 0:00:06]}  Kf7 {[%clk 0:00:04]} 51. Rf5+ {[%clk 0:00:04]}  Kg7 {[%clk 0:00:04]} 52. g4 {[%clk 0:00:04]}  Kh7 {[%clk 0:00:04]} 53. Rf7+ {[%clk 0:00:03]}  Kg8 {[%clk 0:00:04]} 54. Ra7 {[%clk 0:00:04]}  Rd6 {[%clk 0:00:03]} 55. g5 {[%clk 0:00:05]}  Rd4 {[%clk 0:00:02]} 56. Kg6 {[%clk 0:00:03]}  Rd6+ {[%clk 0:00:02]} 57. Kf5 {[%clk 0:00:03]}  Rd4 {[%clk 0:00:02]} 58. h5 {[%clk 0:00:03]}  Rd5+ {[%clk 0:00:02]} 59. Kf6 {[%clk 0:00:03]}  Rd6+ {[%clk 0:00:03]} 60. Ke5 {[%clk 0:00:03]}  Rb6 {[%clk 0:00:03]} 61. g6 {[%clk 0:00:04]}  Rb5+ {[%clk 0:00:03]} 62. Kf6 {[%clk 0:00:04]}  Rb6+ {[%clk 0:00:02]} 63. Kg5 {[%clk 0:00:05]}  Rb5+ {[%clk 0:00:02]} 64. Kh6 {[%clk 0:00:05]}  Rb8 {[%clk 0:00:02]} 65. Rg7+ {[%clk 0:00:05]}  Kh8 {[%clk 0:00:01]} 66. Re7 {[%clk 0:00:05]}  Kg8 {[%clk 0:00:01]} 67. Rg7+ {[%clk 0:00:05]}  Kh8 {[%clk 0:00:01]} 68. Rf7 {[%clk 0:00:06]}  Kg8 {[%clk 0:00:01]} 69. Rf5 {[%clk 0:00:05]}  Kh8 {[%clk 0:00:01]} 70. Kg5 {[%clk 0:00:05]}  Kg7 {[%clk 0:00:01]} 71. h6+ {[%clk 0:00:05]}  Kg8 {[%clk 0:00:01]} 72. Ra5 {[%clk 0:00:05]}  Kh8 {[%clk 0:00:01]} 73. Re5 {[%clk 0:00:06]}  Kg8 {[%clk 0:00:01]} 74. Kf6 {[%clk 0:00:06]} 1-0


[Site "https://www.chess.com"]

[Event "Titled Tuesday Blitz November 08 Early 2022"]
[White "Jean Louis, Marckens"]
[Black "Iliaguev, Nisim"]
[WhiteFideId "11900270"]
[BlackFideId "2817276"]
[WhiteElo "2030"]
[BlackElo "2244"]
[Result "1-0"]
[Round "06"]
[TimeControl "180+1"]
[Date "2022.11.09"]
[WhiteClock "0:00:36"]
[BlackClock "0:00:26"]

1. d4 {[%clk 0:03:00]}  Nf6 {[%clk 0:02:59]} 2. Nf3 {[%clk 0:03:00]}  g6 {[%clk 0:02:58]} 3. g3 {[%clk 0:03:00]}  Bg7 {[%clk 0:02:59]} 4. Bg2 {[%clk 0:03:00]}  O-O {[%clk 0:03:00]} 5. b3 {[%clk 0:02:59]}  c5 {[%clk 0:03:00]} 6. Bb2 {[%clk 0:02:58]}  cxd4 {[%clk 0:03:00]} 7. O-O {[%clk 0:02:57]}  Nc6 {[%clk 0:03:00]} 8. Nxd4 {[%clk 0:02:57]}  d6 {[%clk 0:03:00]} 9. c4 {[%clk 0:02:57]}  Bd7 {[%clk 0:02:59]} 10. Nc3 {[%clk 0:02:46]}  Rc8 {[%clk 0:02:58]} 11. Rc1 {[%clk 0:02:45]}  Qa5 {[%clk 0:02:57]} 12. e3 {[%clk 0:02:40]}  Rfd8 {[%clk 0:02:57]} 13. Qe2 {[%clk 0:02:32]}  h5 {[%clk 0:02:54]} 14. Rfd1 {[%clk 0:02:30]}  h4 {[%clk 0:02:53]} 15. Nxc6 {[%clk 0:02:25]}  bxc6 {[%clk 0:02:49]} 16. a3 {[%clk 0:02:20]}  h3 {[%clk 0:02:46]} 17. Bf3 {[%clk 0:02:18]}  Qg5 {[%clk 0:02:43]} 18. Ne4 {[%clk 0:02:08]}  Nxe4 {[%clk 0:02:42]} 19. Bxe4 {[%clk 0:02:09]}  Bg4 {[%clk 0:02:36]} 20. f3 {[%clk 0:02:09]}  Bxb2 {[%clk 0:02:35]} 21. Qxb2 {[%clk 0:02:06]}  Qxe3+ {[%clk 0:02:35]} 22. Qf2 {[%clk 0:02:06]}  Qxf2+ {[%clk 0:02:35]} 23. Kxf2 {[%clk 0:02:07]}  Be6 {[%clk 0:02:36]} 24. g4 {[%clk 0:02:05]}  d5 {[%clk 0:02:27]} 25. cxd5 {[%clk 0:02:05]}  cxd5 {[%clk 0:02:28]} 26. Bd3 {[%clk 0:01:44]}  d4 {[%clk 0:02:27]} 27. b4 {[%clk 0:01:42]}  Rc3 {[%clk 0:02:21]} 28. Rxc3 {[%clk 0:01:40]}  dxc3 {[%clk 0:02:21]} 29. Ke2 {[%clk 0:01:39]}  Kg7 {[%clk 0:02:16]} 30. Rc1 {[%clk 0:01:39]}  Rc8 {[%clk 0:02:14]} 31. Ke3 {[%clk 0:01:39]}  Bd5 {[%clk 0:02:05]} 32. Bf1 {[%clk 0:01:36]}  e5 {[%clk 0:02:00]} 33. Bxh3 {[%clk 0:01:32]}  Rc7 {[%clk 0:01:36]} 34. g5 {[%clk 0:01:23]}  Rc4 {[%clk 0:01:31]} 35. Bf1 {[%clk 0:01:20]}  Rf4 {[%clk 0:01:27]} 36. Be2 {[%clk 0:01:19]}  Rf5 {[%clk 0:01:13]} 37. h4 {[%clk 0:01:18]}  Rf4 {[%clk 0:01:13]} 38. Rxc3 {[%clk 0:01:18]}  Rxh4 {[%clk 0:01:14]} 39. Rc5 {[%clk 0:01:18]}  Rd4 {[%clk 0:01:00]} 40. Ra5 {[%clk 0:01:18]}  Be6 {[%clk 0:00:39]} 41. Rxe5 {[%clk 0:01:09]}  Rd7 {[%clk 0:00:39]} 42. Rc5 {[%clk 0:01:06]}  Re7 {[%clk 0:00:38]} 43. Kd4 {[%clk 0:00:49]}  Rd7+ {[%clk 0:00:38]} 44. Kc3 {[%clk 0:00:46]}  f6 {[%clk 0:00:37]} 45. f4 {[%clk 0:00:42]}  fxg5 {[%clk 0:00:36]} 46. fxg5 {[%clk 0:00:42]}  Kf7 {[%clk 0:00:36]} 47. Bc4 {[%clk 0:00:42]}  Bxc4 {[%clk 0:00:34]} 48. Kxc4 {[%clk 0:00:42]}  Ke6 {[%clk 0:00:35]} 49. b5 {[%clk 0:00:40]}  Rd1 {[%clk 0:00:34]} 50. Kb4 {[%clk 0:00:37]}  Ra1 {[%clk 0:00:25]} 51. a4 {[%clk 0:00:37]}  Ra2 {[%clk 0:00:25]} 52. Ka5 {[%clk 0:00:36]}  Ra1 {[%clk 0:00:26]} 53. Rc7 {[%clk 0:00:35]}  Kf5 {[%clk 0:00:25]} 54. Rxa7 {[%clk 0:00:35]}  Kxg5 {[%clk 0:00:25]} 55. b6 {[%clk 0:00:35]}  Rb1 {[%clk 0:00:26]} 56. Ka6 {[%clk 0:00:35]}  Kf4 {[%clk 0:00:25]} 57. a5 {[%clk 0:00:35]}  g5 {[%clk 0:00:26]} 58. Rf7+ {[%clk 0:00:35]}  Ke5 {[%clk 0:00:26]} 59. b7 {[%clk 0:00:36]}  g4 {[%clk 0:00:26]} 60. Ka7 {[%clk 0:00:36]} 1-0


[Site "https://www.chess.com"]